fUST/lending_fUST_20251203
["ID","MTS","AMOUNT","RATE_DAILY","PERIOD"]
[395527506,1764700269154,-500.0,0.00014246,2]
[395527508,1764700269164,-500.0,0.00014246,2]
[395527510,1764700269173,-1347.62,0.00014246,2]
[395527512,1764700269182,-1302.34,0.00014246,2]
[395527515,1764700269201,-505.31886948,0.00014246,2]
[395527518,1764700269223,-500.0,0.00014246,2]
[395527521,1764700269239,-500.0,0.00014246,2]
[395527524,1764700269257,-741.45,0.00014246,2]
[395527527,1764700269277,-500.0,0.00014246,2]
[395527530,1764700269293,-703.29,0.00014246,2]
[395527532,1764700269310,-500.0,0.00014246,2]
[395527535,1764700269327,-500.0,0.00014246,2]
[395527538,1764700269342,-3107.02,0.00014246,2]
[395527540,1764700269356,-500.0,0.00014246,2]
[395527543,1764700269375,-3100.21,0.00014246,2]
[395527546,1764700269394,-500.0,0.00014246,2]
[395527549,1764700269412,-500.0,0.00014246,2]
[395527551,1764700269424,-819.83,0.00014246,2]
[395527554,1764700269442,-500.0,0.00014246,2]
[395527557,1764700269457,-500.0,0.00014246,2]
[395527560,1764700269473,-500.0,0.00014246,2]
[395527562,1764700269488,-500.0,0.00014246,2]
[395527565,1764700269501,-500.0,0.00014246,2]
[395527567,1764700269516,-500.0,0.00014246,2]
[395527570,1764700269530,-500.0,0.00014246,2]
[395527572,1764700269543,-500.0,0.00014246,2]
[395527574,1764700269557,-500.0,0.00014246,2]
[395527577,1764700269572,-500.0,0.00014246,2]
[395527579,1764700269585,-1685.38,0.00014246,2]
[395527582,1764700269599,-758.24,0.00014246,2]
[395527584,1764700269614,-500.0,0.00014246,2]
[395527587,1764700269628,-1302.06,0.00014246,2]
[395527589,1764700269645,-539.01,0.00014246,2]
[395527592,1764700269660,-500.0,0.00014246,2]
[395527594,1764700269674,-500.0,0.00014246,2]
[395527597,1764700269689,-500.0,0.00014246,2]
[395527599,1764700269705,-978.33,0.00014246,2]
[395527602,1764700269719,-1527.03,0.00014246,2]
[395527604,1764700269734,-500.0,0.00014246,2]
[395527607,1764700269747,-5315.98,0.00014246,2]
[395527609,1764700269761,-500.0,0.00014246,2]
[395527612,1764700269776,-500.0,0.00014246,2]
[395527614,1764700269791,-1275.67,0.00014246,2]
[395527617,1764700269804,-1340.01,0.00014246,2]
[395527619,1764700269820,-500.0,0.00014246,2]
[395527622,1764700269835,-840.94,0.00014246,2]
[395527624,1764700269849,-500.0,0.00014246,2]
[395527627,1764700269863,-500.0,0.00014246,2]
[395527629,1764700269877,-500.0,0.00014246,2]
[395527632,1764700269892,-1356.24,0.00014246,2]
[395527634,1764700269907,-500.0,0.00014246,2]
[395527637,1764700269922,-500.0,0.00014246,2]
[395527639,1764700269938,-510.72,0.00014246,2]
[395527642,1764700269953,-745.97,0.00014246,2]
[395527644,1764700269969,-500.0,0.00014246,2]
[395527647,1764700269983,-1054.46,0.00014246,2]
[395527649,1764700269997,-500.0,0.00014246,2]
[395527652,1764700270012,-500.0,0.00014246,2]
[395527654,1764700270026,-500.0,0.00014247,2]
[395527657,1764700270040,-1000.0,0.00014247,2]
[395527659,1764700270055,-1000.0,0.00014247,2]
[395527662,1764700270070,-727.58239643,0.00014247,2]
[395527664,1764700270084,-1000.0,0.00014247,2]
[395527667,1764700270098,-1000.0,0.00014247,2]
[395527669,1764700270112,-1000.0,0.00014247,2]
[395527672,1764700270129,-1000.0,0.00014247,2]
[395527674,1764700270144,-1000.0,0.00014247,2]
[395527677,1764700270158,-1000.0,0.00014247,2]
[395527679,1764700270173,-300.98985246,0.00014312,2]
[395527682,1764700270187,-500.0,0.00014368,2]
[395527684,1764700270202,-1500.0,0.00014368,2]
[395527686,1764700270217,-1500.0,0.00014368,2]
[395527689,1764700270231,-1500.0,0.00014368,2]
[395527691,1764700270246,-500.0,0.00014383,2]
[395527694,1764700270260,-430.3712558,0.00014383,2]
[395527696,1764700270275,-245.0,0.00014383,2]
[395527699,1764700270289,-245.0,0.00014383,2]
[395527701,1764700270304,-455.0,0.0001452,2]
[395527704,1764700270318,-2872.185808,0.0001452,2]
[395527706,1764700270332,-178.5173247,0.0001452,2]
[395527708,1764700270341,-500.0,0.0001452,2]
[395527710,1764700270351,-500.0,0.0001452,2]
[395527712,1764700270360,-500.0,0.0001452,2]
[395527714,1764700270370,-500.0,0.0001452,2]
[395527716,1764700270379,-500.0,0.0001452,2]
[395527718,1764700270389,-500.0,0.0001452,2]
[395527720,1764700270398,-500.0,0.0001452,2]
[395527722,1764700270407,-500.0,0.0001452,2]
[395527724,1764700270416,-500.0,0.0001452,2]
[395527726,1764700270427,-500.0,0.0001452,2]
[395527728,1764700270437,-822.86,0.0001452,2]
[395527730,1764700270446,-690.16,0.0001452,2]
[395527732,1764700270457,-513.11706137,0.0001452,2]
[395527734,1764700270467,-500.0,0.0001452,2]
[395527736,1764700270477,-944.82,0.0001452,2]
[395527738,1764700270486,-530.22093907,0.0001452,2]
[395527740,1764700270496,-500.0,0.0001452,2]
[395527742,1764700270507,-500.0,0.0001452,2]
[395527744,1764700270517,-1072.55,0.0001452,2]
[395527746,1764700270533,-500.0,0.0001452,2]
[395527748,1764700270542,-500.0,0.0001452,2]
[395527750,1764700270552,-500.0,0.0001452,2]
[395527752,1764700270564,-500.0,0.0001452,2]
[395527755,1764700270577,-500.0,0.0001452,2]
[395527756,1764700270591,-599.59,0.0001452,2]
[395527787,1764700270906,-500.0,0.0001452,2]
[395527791,1764700270928,-500.0,0.0001452,2]
[395527793,1764700270956,-505.92435435,0.0001452,2]
[395527794,1764700270966,-500.0,0.0001452,2]
[395527795,1764700270976,-500.0,0.0001452,2]
[395527796,1764700270986,-500.0,0.0001452,2]
[395527797,1764700270996,-500.0,0.0001452,2]
[395527798,1764700271006,-500.0,0.0001452,2]
[395527799,1764700271017,-500.0,0.0001452,2]
[395527800,1764700271027,-500.0,0.0001452,2]
[395527801,1764700271037,-886.13,0.0001452,2]
[395527802,1764700271048,-623.2,0.0001452,2]
[395527803,1764700271058,-500.0,0.0001452,2]
[395527804,1764700271070,-500.0,0.0001452,2]
[395527805,1764700271082,-500.0,0.0001452,2]
[395527806,1764700271093,-911.67,0.0001452,2]
[395527807,1764700271104,-500.0,0.0001452,2]
[395527808,1764700271114,-500.0,0.0001452,2]
[395527809,1764700271130,-500.0,0.0001452,2]
[395527810,1764700271140,-500.0,0.0001452,2]
[395527811,1764700271151,-954.32,0.0001452,2]
[395527812,1764700271163,-500.0,0.0001452,2]
[395527813,1764700271174,-500.0,0.0001452,2]
[395527814,1764700271184,-500.0,0.0001452,2]
[395527816,1764700271196,-500.0,0.0001452,2]
[395527818,1764700271211,-500.0,0.0001452,2]
[395527820,1764700271221,-500.0,0.0001452,2]
[395527822,1764700271232,-500.0,0.0001452,2]
[395527823,1764700271241,-500.0,0.0001452,2]
[395527825,1764700271253,-500.0,0.0001452,2]
[395527828,1764700271264,-500.0,0.0001452,2]
[395527829,1764700271274,-621.63,0.0001452,2]
[395527832,1764700271287,-500.0,0.0001452,2]
[395527833,1764700271298,-500.0,0.0001452,2]
[395527836,1764700271309,-500.0,0.0001452,2]
[395527838,1764700271319,-516.72219164,0.0001452,2]
[395527839,1764700271329,-500.0,0.0001452,2]
[395527842,1764700271340,-500.0,0.0001452,2]
[395527843,1764700271352,-1280.13,0.0001452,2]
[395527846,1764700271364,-524.35,0.0001452,2]
[395527848,1764700271375,-861.06,0.0001452,2]
[395527850,1764700271386,-503.42256502,0.0001452,2]
[395527852,1764700271398,-1138.79,0.0001452,2]
[395527853,1764700271407,-500.0,0.0001452,2]
[395527855,1764700271417,-500.0,0.0001452,2]
[395527858,1764700271427,-500.0,0.0001452,2]
[395527860,1764700271437,-500.0,0.0001452,2]
[395527862,1764700271449,-500.0,0.0001452,2]
[395527864,1764700271459,-500.0,0.0001452,2]
[395527866,1764700271468,-505.61679271,0.0001452,2]
[395527868,1764700271479,-500.0,0.0001452,2]
[395527870,1764700271489,-1442.93,0.0001452,2]
[395527872,1764700271498,-500.0,0.0001452,2]
[395527874,1764700271507,-500.0,0.0001452,2]
[395527876,1764700271517,-500.0,0.0001452,2]
[395527878,1764700271526,-743.32,0.0001452,2]
[395527880,1764700271535,-501.18745486,0.0001452,2]
[395527882,1764700271544,-1286.19,0.0001452,2]
[395527883,1764700271554,-500.0,0.0001452,2]
[395527885,1764700271565,-500.0,0.0001452,2]
[395527887,1764700271574,-500.0,0.0001452,2]
[395527889,1764700271583,-500.0,0.0001452,2]
[395527891,1764700271593,-500.0,0.0001452,2]
[395527893,1764700271604,-500.0,0.0001452,2]
[395527895,1764700271613,-500.0,0.0001452,2]
[395527897,1764700271623,-994.38,0.0001452,2]
[395527899,1764700271634,-500.0,0.0001452,2]
[395527901,1764700271644,-500.0,0.0001452,2]
[395527903,1764700271654,-500.0,0.0001452,2]
[395527905,1764700271665,-500.0,0.0001452,2]
[395527907,1764700271677,-169.3276864,0.0001452,2]
[395527909,1764700271687,-1207.07,0.0001452,2]
[395527911,1764700271697,-547.67,0.0001452,2]
[395527913,1764700271708,-500.0,0.0001452,2]
[395527915,1764700271718,-502.0096923,0.0001452,2]
[395527917,1764700271728,-500.0,0.0001452,2]
[395527919,1764700271737,-502.45070626,0.0001452,2]
[395527921,1764700271746,-500.0,0.0001452,2]
[395527923,1764700271756,-501.74071874,0.0001452,2]
[395527925,1764700271765,-196.13,0.0001452,2]
[395527927,1764700271774,-500.0,0.0001452,2]
[395527929,1764700271784,-500.0,0.0001452,2]
[395527931,1764700271793,-643.84,0.0001452,2]
[395527933,1764700271802,-500.0,0.0001452,2]
[395527935,1764700271811,-500.0,0.0001452,2]
[395527937,1764700271821,-500.0,0.0001452,2]
[395527939,1764700271830,-736.5,0.0001452,2]
[395527941,1764700271841,-441.25012632,0.0001452,2]
[395527943,1764700271850,-787.24,0.0001452,2]
[395527945,1764700271859,-500.0,0.0001452,2]
[395527947,1764700271871,-655.37,0.0001452,2]
[395527949,1764700271880,-500.0,0.0001452,2]
[395527951,1764700271889,-500.0,0.0001452,2]
[395527953,1764700271899,-500.0,0.0001452,2]
[395527955,1764700271908,-500.0,0.0001452,2]
[395527956,1764700271917,-500.0,0.0001452,2]
[395527958,1764700271927,-500.0,0.0001452,2]
[395527960,1764700271936,-777.22,0.0001452,2]
[395527962,1764700271945,-717.18,0.0001452,2]
[395527964,1764700271954,-500.0,0.0001452,2]
[395527966,1764700271963,-642.97,0.0001452,2]
[395527968,1764700271972,-500.0,0.0001452,2]
[395527970,1764700271982,-682.99,0.0001452,2]
[395527972,1764700271992,-500.0,0.0001452,2]
[395527974,1764700272001,-500.0,0.0001452,2]
[395527976,1764700272010,-500.0,0.0001452,2]
[395527978,1764700272022,-541.11579648,0.0001452,2]
[395527980,1764700272032,-500.0,0.0001452,2]
[395527982,1764700272041,-500.0,0.0001452,2]
[395527984,1764700272050,-500.0,0.0001452,2]
[395527986,1764700272059,-500.0,0.0001452,2]
[395527988,1764700272069,-500.0,0.0001452,2]
[395527990,1764700272077,-500.0,0.0001452,2]
[395527992,1764700272087,-504.25861301,0.0001452,2]
[395527993,1764700272095,-500.0,0.0001452,2]
[395527995,1764700272105,-1300.6,0.0001452,2]
[395527997,1764700272115,-501.12122082,0.0001452,2]
[395527999,1764700272129,-1234.64,0.0001452,2]
[395528001,1764700272139,-998.85,0.0001452,2]
[395528003,1764700272149,-500.0,0.0001452,2]
[395528005,1764700272159,-500.0,0.0001452,2]
[395528007,1764700272169,-500.0,0.0001452,2]
[395528009,1764700272178,-504.39937449,0.0001452,2]
[395528011,1764700272187,-504.66208972,0.0001452,2]
[395528013,1764700272197,-663.37,0.0001452,2]
[395528015,1764700272208,-500.0,0.0001452,2]
[395528017,1764700272217,-500.0,0.0001452,2]
[395528019,1764700272226,-500.0,0.0001452,2]
[395528021,1764700272235,-502.39592653,0.0001452,2]
[395528023,1764700272245,-1874.34,0.0001452,2]
[395528025,1764700272254,-500.0,0.0001452,2]
[395528027,1764700272264,-500.0,0.0001452,2]
[395528029,1764700272273,-500.0,0.0001452,2]
[395528031,1764700272282,-500.0,0.0001452,2]
[395528033,1764700272292,-500.0,0.0001452,2]
[395528035,1764700272302,-500.0,0.0001452,2]
[395528037,1764700272312,-1323.39,0.0001452,2]
[395528039,1764700272322,-503.18726151,0.0001452,2]
[395528041,1764700272332,-1022.46,0.0001452,2]
[395528043,1764700272341,-500.0,0.0001452,2]
[395528045,1764700272352,-500.0,0.0001452,2]
[395528046,1764700272362,-680.39,0.0001452,2]
[395528049,1764700272373,-705.84,0.0001452,2]
[395528050,1764700272383,-500.0,0.0001452,2]
[395528052,1764700272393,-1214.22,0.0001452,2]
[395528055,1764700272404,-500.0,0.0001452,2]
[395528056,1764700272415,-500.0,0.0001452,2]
[395528059,1764700272426,-1015.56,0.0001452,2]
[395528061,1764700272437,-500.0,0.0001452,2]
[395528062,1764700272448,-500.0,0.0001452,2]
[395528064,1764700272460,-508.24,0.0001452,2]
[395528066,1764700272469,-500.0,0.0001452,2]
[395528068,1764700272480,-500.0,0.0001452,2]
[395528070,1764700272490,-500.0,0.0001452,2]
[395528072,1764700272499,-500.0,0.0001452,2]
[395528074,1764700272508,-1441.93,0.0001452,2]
[395528076,1764700272517,-500.0,0.0001452,2]
[395528078,1764700272526,-682.71,0.0001452,2]
[395528080,1764700272535,-1368.61,0.0001452,2]
[395528082,1764700272544,-500.0,0.0001452,2]
[395528084,1764700272554,-500.0,0.0001452,2]
[395528086,1764700272563,-500.0,0.0001452,2]
[395528088,1764700272572,-627.35,0.0001452,2]
[395528090,1764700272581,-500.0,0.0001452,2]
[395528092,1764700272591,-555.08693884,0.0001452,2]
[395528094,1764700272599,-896.16,0.0001452,2]
[395528096,1764700272608,-511.55844075,0.0001452,2]
[395528098,1764700272617,-500.0,0.0001452,2]
[395528100,1764700272627,-504.64699586,0.0001452,2]
[395528102,1764700272636,-500.0,0.0001452,2]
[395528104,1764700272645,-500.0,0.0001452,2]
[395528106,1764700272656,-851.71,0.0001452,2]
[395528108,1764700272665,-500.0,0.0001452,2]
[395528110,1764700272674,-982.64,0.0001452,2]
[395528112,1764700272683,-2168.86,0.0001452,2]
[395528114,1764700272693,-520.60816844,0.0001452,2]
[395528116,1764700272702,-837.95,0.0001452,2]
[395528118,1764700272715,-500.0,0.0001452,2]
[395528120,1764700272724,-500.0,0.0001452,2]
[395528122,1764700272733,-1863.03,0.0001452,2]
[395528124,1764700272743,-500.0,0.0001452,2]
[395528126,1764700272752,-1472.77,0.0001452,2]
[395528128,1764700272761,-784.97,0.0001452,2]
[395528130,1764700272771,-500.0,0.0001452,2]
[395528132,1764700272780,-500.0,0.0001452,2]
[395528134,1764700272789,-500.0,0.0001452,2]
[395528135,1764700272798,-500.0,0.0001452,2]
[395528137,1764700272807,-697.16,0.0001452,2]
[395528139,1764700272817,-511.58842839,0.0001452,2]
[395528141,1764700272826,-511.13287788,0.0001452,2]
[395528143,1764700272835,-500.0,0.0001452,2]
[395528145,1764700272844,-1013.11,0.0001452,2]
[395528147,1764700272854,-503.67,0.0001452,2]
[395528149,1764700272864,-500.0,0.0001452,2]
[395528151,1764700272873,-500.0,0.0001452,2]
[395528153,1764700272882,-500.0,0.0001452,2]
[395528155,1764700272892,-500.0,0.0001452,2]
[395528157,1764700272902,-500.0,0.0001452,2]
[395528159,1764700272911,-500.0,0.0001452,2]
[395528161,1764700272921,-500.0,0.0001452,2]
[395528163,1764700272930,-500.0,0.0001452,2]
[395528165,1764700272939,-500.0,0.0001452,2]
[395528167,1764700272948,-500.0,0.0001452,2]
[395528169,1764700272959,-719.86,0.0001452,2]
[395528171,1764700272968,-582.91,0.0001452,2]
[395528173,1764700272978,-505.84378767,0.0001452,2]
[395528175,1764700272987,-500.0,0.0001452,2]
[395528177,1764700272996,-500.0,0.0001452,2]
[395528179,1764700273005,-500.0,0.0001452,2]
[395528181,1764700273015,-500.0,0.0001452,2]
[395528183,1764700273024,-500.0,0.0001452,2]
[395528185,1764700273033,-500.0,0.0001452,2]
[395528187,1764700273042,-1792.88,0.0001452,2]
[395528189,1764700273051,-1891.68,0.0001452,2]
[395528191,1764700273061,-1227.22,0.0001452,2]
[395528193,1764700273070,-365.19499508,0.0001452,2]
[395528195,1764700273079,-1823.85,0.0001452,2]
[395528197,1764700273088,-847.98,0.0001452,2]
[395528199,1764700273098,-966.59,0.0001452,2]
[395528201,1764700273107,-500.0,0.0001452,2]
[395528203,1764700273117,-1668.64,0.0001452,2]
[395528205,1764700273128,-500.0,0.0001452,2]
[395528207,1764700273141,-500.0,0.0001452,2]
[395528209,1764700273151,-500.0,0.0001452,2]
[395528211,1764700273160,-616.11,0.0001452,2]
[395528213,1764700273170,-500.0,0.0001452,2]
[395528215,1764700273179,-500.0,0.0001452,2]
[395528217,1764700273188,-500.0,0.0001452,2]
[395528219,1764700273198,-505.35954222,0.0001452,2]
[395528221,1764700273211,-582.84,0.0001452,2]
[395528223,1764700273220,-344.42641748,0.0001452,2]
[395528225,1764700273230,-1831.7,0.0001452,2]
[395528227,1764700273239,-516.69201294,0.0001452,2]
[395528229,1764700273248,-1002.62,0.0001452,2]
[395528231,1764700273258,-500.0,0.0001452,2]
[395528233,1764700273267,-1375.89,0.0001452,2]
[395528235,1764700273278,-510.17,0.0001452,2]
[395528237,1764700273288,-500.0,0.0001452,2]
[395528239,1764700273297,-500.0,0.0001452,2]
[395528241,1764700273306,-1425.0,0.0001452,2]
[395528243,1764700273315,-645.65,0.0001452,2]
[395528245,1764700273324,-625.42,0.0001452,2]
[395528247,1764700273333,-988.15,0.0001452,2]
[395528249,1764700273343,-500.0,0.0001452,2]
[395528251,1764700273352,-566.53,0.0001452,2]
[395528253,1764700273361,-500.0,0.0001452,2]
[395528255,1764700273371,-500.0,0.0001452,2]
[395528257,1764700273380,-500.0,0.0001452,2]
[395528259,1764700273389,-500.0,0.0001452,2]
[395528261,1764700273399,-500.0,0.0001452,2]
[395528263,1764700273408,-993.17,0.0001452,2]
[395528265,1764700273417,-500.0,0.0001452,2]
[395528267,1764700273426,-500.0,0.0001452,2]
[395528269,1764700273435,-500.0,0.0001452,2]
[395528271,1764700273444,-500.0,0.0001452,2]
[395528273,1764700273453,-721.42,0.0001452,2]
[395528274,1764700273463,-1322.83,0.0001452,2]
[395528276,1764700273472,-782.52,0.0001452,2]
[395528278,1764700273481,-500.0,0.0001452,2]
[395528280,1764700273489,-500.0,0.0001452,2]
[395528282,1764700273499,-772.11,0.0001452,2]
[395528284,1764700273507,-500.0,0.0001452,2]
[395528286,1764700273516,-616.53,0.0001452,2]
[395528288,1764700273525,-1121.31,0.0001452,2]
[395528290,1764700273534,-500.0,0.0001452,2]
[395528292,1764700273543,-1436.21,0.0001452,2]
[395528294,1764700273553,-638.45,0.0001452,2]
[395528296,1764700273562,-500.0,0.0001452,2]
[395528298,1764700273571,-500.0,0.0001452,2]
[395528300,1764700273581,-500.0,0.0001452,2]
[395528302,1764700273590,-500.0,0.0001452,2]
[395528304,1764700273600,-501.69239807,0.0001452,2]
[395528306,1764700273609,-573.67,0.0001452,2]
[395528308,1764700273618,-1022.84,0.0001452,2]
[395528310,1764700273628,-880.72,0.0001452,2]
[395528312,1764700273637,-500.0,0.0001452,2]
[395528314,1764700273647,-500.0,0.0001452,2]
[395528316,1764700273656,-1113.83,0.0001452,2]
[395528318,1764700273665,-1158.18,0.0001452,2]
[395528320,1764700273674,-500.0,0.0001452,2]
[395528322,1764700273683,-901.12,0.0001452,2]
[395528324,1764700273693,-563.34,0.0001452,2]
[395528326,1764700273702,-500.0,0.0001452,2]
[395528328,1764700273713,-500.0,0.0001452,2]
[395528330,1764700273722,-500.0,0.0001452,2]
[395528332,1764700273731,-946.95,0.0001452,2]
[395528333,1764700273740,-523.1,0.0001452,2]
[395528334,1764700273750,-500.0,0.0001452,2]
[395528335,1764700273760,-542.93037886,0.0001452,2]
[395528336,1764700273770,-500.0,0.0001452,2]
[395528337,1764700273780,-684.46,0.0001452,2]
[395528338,1764700273789,-930.17,0.0001452,2]
[395528339,1764700273799,-508.0520732,0.0001452,2]
[395528340,1764700273808,-500.0,0.0001452,2]
[395528341,1764700273818,-500.0,0.0001452,2]
[395528343,1764700273827,-500.0,0.0001452,2]
[395528345,1764700273838,-500.0,0.0001452,2]
[395528347,1764700273846,-500.0,0.0001452,2]
[395528349,1764700273856,-1234.72,0.0001452,2]
[395528351,1764700273865,-998.08,0.0001452,2]
[395528353,1764700273875,-634.83122043,0.0001452,2]
[395528355,1764700273885,-1048.81,0.0001452,2]
[395528357,1764700273896,-500.0,0.0001452,2]
[395528359,1764700273906,-500.0,0.0001452,2]
[395528361,1764700273915,-500.0,0.0001452,2]
[395528363,1764700273926,-500.0,0.0001452,2]
[395528365,1764700273936,-500.0,0.0001452,2]
[395528367,1764700273945,-665.63,0.0001452,2]
[395528369,1764700273956,-500.0,0.0001452,2]
[395528372,1764700273966,-841.24,0.0001452,2]
[395528373,1764700273975,-1376.14,0.0001452,2]
[395528376,1764700273985,-500.0,0.0001452,2]
[395528378,1764700273995,-500.0,0.0001452,2]
[395528380,1764700274006,-500.0,0.0001452,2]
[395528382,1764700274016,-1310.97,0.0001452,2]
[395528384,1764700274026,-500.0,0.0001452,2]
[395528386,1764700274036,-500.0,0.0001452,2]
[395528388,1764700274046,-500.0,0.0001452,2]
[395528390,1764700274056,-954.75,0.0001452,2]
[395528392,1764700274065,-500.0,0.0001452,2]
[395528394,1764700274075,-500.0,0.0001452,2]
[395528396,1764700274085,-500.0,0.0001452,2]
[395528398,1764700274094,-500.0,0.0001452,2]
[395528400,1764700274104,-1672.25,0.0001452,2]
[395528402,1764700274113,-500.0,0.0001452,2]
[395528404,1764700274126,-646.78,0.0001452,2]
[395528406,1764700274135,-500.0,0.0001452,2]
[395528408,1764700274146,-500.0,0.0001452,2]
[395528410,1764700274155,-500.0,0.0001452,2]
[395528412,1764700274165,-549.78,0.0001452,2]
[395528414,1764700274175,-635.02,0.0001452,2]
[395528416,1764700274184,-666.2,0.0001452,2]
[395528418,1764700274195,-2392.84,0.0001452,2]
[395528435,1764700274205,-457.11899064,0.0001452,2]
[395528438,1764700274370,-4019.58,0.0001452,2]
[395528440,1764700274380,-834.95,0.0001452,2]
[395528442,1764700274390,-500.0,0.0001452,2]
[395528444,1764700274399,-1131.23,0.0001452,2]
[395528446,1764700274408,-500.0,0.0001452,2]
[395528448,1764700274417,-590.03,0.0001452,2]
[395528450,1764700274427,-500.0,0.0001452,2]
[395528452,1764700274436,-679.74,0.0001452,2]
[395528454,1764700274445,-1261.89,0.0001452,2]
[395528456,1764700274454,-1502.27,0.0001452,2]
[395528459,1764700274466,-1176.24,0.0001452,2]
[395528461,1764700274475,-708.34,0.0001452,2]
[395528463,1764700274486,-500.0,0.0001452,2]
[395528465,1764700274496,-500.0,0.0001452,2]
[395528467,1764700274505,-3534.78,0.0001452,2]
[395528469,1764700274515,-1590.78,0.0001452,2]
[395528471,1764700274525,-1468.43,0.0001452,2]
[395528473,1764700274534,-505.4294997,0.0001452,2]
[395528475,1764700274544,-222.4379988,0.0001452,2]
[395528477,1764700274553,-1529.68,0.0001452,2]
[395528479,1764700274562,-500.0,0.0001452,2]
[395528481,1764700274571,-1389.1,0.0001452,2]
[395528483,1764700274581,-500.0,0.0001452,2]
[395528485,1764700274591,-1486.77,0.0001452,2]
[395528487,1764700274600,-713.64,0.0001452,2]
[395528489,1764700274609,-500.0,0.0001452,2]
[395528490,1764700274619,-2062.66,0.0001452,2]
[395528492,1764700274628,-2029.83,0.0001452,2]
[395528495,1764700274638,-408.50500739,0.0001452,2]
[395528497,1764700274647,-501.84340308,0.0001452,2]
[395528499,1764700274657,-1207.71,0.0001452,2]
[395528501,1764700274668,-500.0,0.0001452,2]
[395528503,1764700274678,-750.49,0.0001452,2]
[395528505,1764700274689,-913.85,0.0001452,2]
[395528507,1764700274698,-500.0,0.0001452,2]
[395528509,1764700274709,-709.72,0.0001452,2]
[395528511,1764700274718,-520.63,0.0001452,2]
[395528513,1764700274727,-500.0,0.0001452,2]
[395528515,1764700274736,-3520.43,0.0001452,2]
[395528517,1764700274746,-500.0,0.0001452,2]
[395528519,1764700274756,-1047.77,0.0001452,2]
[395528520,1764700274765,-4898.68,0.0001452,2]
[395528522,1764700274776,-673.82,0.0001452,2]
[395528524,1764700274786,-500.0,0.0001452,2]
[395528527,1764700274796,-500.0,0.0001452,2]
[395528529,1764700274806,-500.0,0.0001452,2]
[395528531,1764700274816,-801.02,0.0001452,2]
[395528533,1764700274826,-500.0,0.0001452,2]
[395528535,1764700274836,-724.17,0.0001452,2]
[395528537,1764700274846,-500.0,0.0001452,2]
[395528539,1764700274855,-500.0,0.0001452,2]
[395528541,1764700274864,-506.12837154,0.0001452,2]
[395528543,1764700274874,-583.23,0.0001452,2]
[395528545,1764700274883,-500.0,0.0001452,2]
[395528547,1764700274893,-500.0,0.0001452,2]
[395528549,1764700274903,-1171.68,0.0001452,2]
[395528551,1764700274914,-500.0,0.0001452,2]
[395528553,1764700274925,-503.31797407,0.0001452,2]
[395528555,1764700274935,-881.41,0.0001452,2]
[395528557,1764700274947,-500.0,0.0001452,2]
[395528559,1764700274959,-1267.99,0.0001452,2]